Workbook

Sheet Salaries
B4: السائقين | H4: المطلوب عد قيمة كل ورقة نقدية من الجدول الأيمن و اضافتها الى هذا الجدول | M4: 5 | N4: 10 | O4: 20 | P4: 50 | Q4: 100 | R4: 200 | S4: 500 | T4: 1000 | X4: تفقيط الأرقام لكل عملة ورقية
B5: 6870 | D5: 1 | L5: 6870 | M5: =MOD(B5,10)/5 -> 0 | N5: =(MOD(B5,10)-MOD(B5,10))/10 -> 0 | O5: =(MOD(B5,50)-MOD(B5,20))/20 -> 0.5 | P5: =(MOD(B5,100)-MOD(B5,50))/50 -> 1 | Q5: =MOD(B5,100)/100 -> 0.7 | R5: =(MOD(B5,500)-MOD(B5,200))/200 -> 1.5 | S5: =(MOD(B5,1000)-MOD(B5,500))/500 -> 1 | T5: =(B5-MOD(B5,1000))/1000 -> 6
B6: 3650 | D6: 2 | L6: 3650 | M6: =MOD(B6,10)/5 -> 0 | N6: =(MOD(B6,10)-MOD(B6,10))/10 -> 0 | O6: =(MOD(B6,50)-MOD(B6,20))/20 -> -0.5 | P6: =(MOD(B6,100)-MOD(B6,50))/50 -> 1 | Q6: =MOD(B6,100)/100 -> 0.5 | R6: =(MOD(B6,100)-MOD(B6,200))/200 -> 0 | S6: 1 | T6: =(B6-MOD(B6,1000))/1000 -> 3
B7: 2105 | D7: 3 | L7: 2105 | M7: 1 | N7: 0 | O7: =(MOD(B7,50)-MOD(B7,20))/20*1 -> 0 | P7: 0 | Q7: =MOD(B7,100)/100 -> 0.05 | R7: =(MOD(B7,1000)-MOD(B7,200))/200 -> 0 | S7: 0 | T7: 2
B8: 5225 | D8: 4 | L8: 5225 | M8: 1 | N8: 0 | O8: 1 | P8: =(MOD(B8,100)-MOD(B8,50))/50 -> 0 | Q8: =MOD(B8,100)/100 -> 0.25 | R8: 1 | S8: 0 | T8: 5
B9: 4885 | D9: 5 | L9: 4885 | M9: 1 | N9: 0 | O9: 1.5 | P9: =(MOD(B9,100)-MOD(B9,50))/50 -> 1 | Q9: =MOD(B9,100)/100 -> 0.85 | R9: 4 | S9: 1 | T9: 4
B10: 4400 | D10: 6 | L10: 4400 | M10: 0 | N10: 0 | O10: 0 | P10: 0 | Q10: =MOD(B10,100)/100 -> 0 | R10: 2 | S10: 0 | T10: 4
B11: 4075 | D11: 7 | L11: 4075 | M11: 1 | N11: 0 | O11: =(MOD(B11,50)-MOD(B11,20))/20*1 -> 0.5 | P11: 1 | Q11: =MOD(B11,100)/100 -> 0.75 | R11: 0 | S11: 0 | T11: 4
B12: 5495 | D12: 8 | L12: 5495 | M12: 1 | N12: 0 | O12: =(MOD(B12,50)-MOD(B12,20))/20*1 -> 1.5 | P12: 1 | Q12: =MOD(B12,100)/100 -> 0.95 | R12: =(MOD(B12,1000)-MOD(B12,200))/200 -> 2 | S12: 0 | T12: 5
B13: 4175 | D13: 9 | L13: 4175 | M13: =MOD(B13,10)/5 -> 1 | N13: 0 | O13: 0.5 | P13: 1 | Q13: =MOD(B13,100)/100 -> 0.75 | R13: 0 | S13: 0 | T13: 4
B14: 4920 | D14: 10 | F14: =H14*J14 -> 45000 | G14: = | H14: =T16 -> 45 | I14: × | J14: 1000 | L14: 4920 | M14: 0 | N14: 0 | O14: 1 | P14: 0 | Q14: =MOD(B14,100)/100 -> 0.2 | R14: 4 | S14: 1 | T14: 4
B15: 4930 | D15: 11 | F15: =H15*J15 -> 2500 | G15: = | H15: =S16 -> 5 | I15: × | J15: 500 | L15: 4930 | M15: 0 | N15: 0 | O15: 1 | P15: =(MOD(B15,100)-MOD(B15,50))/50 -> 0 | Q15: =MOD(B15,100)/100 -> 0.3 | R15: 4 | S15: 1 | T15: 4
B16: =SUM(B5:B15) -> 50730 | C16: الاجمالي | F16: 2200 | G16: = | H16: 11 | I16: × | J16: 200 | M16: =SUM(M5:M15) -> 6 | N16: 0 | O16: 7 | P16: 6 | Q16: 5.3 | R16: 18.5 | S16: =SUM(S5:S15) -> 5 | T16: =SUM(T5:T15) -> 45
F17: 500 | G17: = | H17: 5 | I17: × | J17: 100 | M17: 6 | N17: 1 | O17: 9 | P17: 6 | Q17: 5 | R17: 11 | S17: 5 | T17: 45
F18: 300 | G18: = | H18: 6 | I18: × | J18: 50 | M18: =IF(M16=M17,"OK","Error") -> OK | N18: Error | O18: Error | P18: OK | Q18: =IF(Q16=Q17,"OK","Error") -> Error | R18: =IF(R16=R17,"OK","Error") -> Error | S18: OK | T18: OK
F19: 180 | G19: = | H19: 9 | I19: × | J19: 20
F20: 20 | G20: = | H20: 2 | I20: × | J20: 10
F21: =H21*J21 -> 30 | G21: = | H21: 6 | I21: × | J21: 5
F23: =SUM(F14:F22) -> 50730
